fUST/lending_fUST_20240702
["ID","MTS","AMOUNT","RATE_DAILY","PERIOD"]
[330843254,1719856250014,-500.0,0.00015973,2]
[330843255,1719856250024,-505.62633164,0.00015973,2]
[330843256,1719856250034,-500.0,0.00015973,2]
[330843257,1719856250043,-500.0,0.00015973,2]
[330843258,1719856250052,-500.0,0.00015973,2]
[330843259,1719856250061,-500.0,0.00015973,2]
[330843260,1719856250071,-500.0,0.00015973,2]
[330843261,1719856250079,-500.0,0.00015973,2]
[330843262,1719856250088,-500.0,0.00015973,2]
[330843263,1719856250097,-500.0,0.00015973,2]
[330843264,1719856250106,-504.876134,0.00015973,2]
[330843265,1719856250115,-500.0,0.00015973,2]
[330843266,1719856250124,-500.0,0.00015973,2]
[330843267,1719856250133,-502.72717588,0.00015973,2]
[330843268,1719856250142,-525.22086635,0.00015973,2]
[330843269,1719856250151,-500.0,0.00015973,2]
[330843270,1719856250161,-500.0,0.00015973,2]
[330843271,1719856250170,-500.0,0.00015973,2]
[330843272,1719856250179,-500.0,0.00015973,2]
[330843273,1719856250188,-500.0,0.00015973,2]
[330843274,1719856250197,-500.0,0.00015973,2]
[330843275,1719856250206,-507.48280588,0.00015973,2]
[330843276,1719856250215,-500.0,0.00015973,2]
[330843277,1719856250224,-500.0,0.00015973,2]
[330843278,1719856250233,-500.0,0.00015973,2]
[330843279,1719856250242,-506.55454954,0.00015973,2]
[330843280,1719856250251,-500.0,0.00015973,2]
[330843281,1719856250260,-504.69108857,0.00015973,2]
[330843282,1719856250271,-500.75699902,0.00015973,2]
[330843283,1719856250284,-505.0,0.00015973,2]
[330843284,1719856250294,-500.0,0.00015973,2]
[330843285,1719856250303,-506.33725493,0.00015973,2]
[330843286,1719856250314,-500.0,0.00015973,2]
[330843287,1719856250324,-500.0,0.00015973,2]
[330843288,1719856250333,-500.0,0.00015973,2]
[330843289,1719856250343,-207.18140657,0.00015973,2]
[330843290,1719856250353,-500.0,0.00015973,2]
[330843291,1719856250362,-500.0,0.00015973,2]
[330843292,1719856250372,-500.93566586,0.00015973,2]
[330843293,1719856250381,-502.75910653,0.00015973,2]
[330843294,1719856250390,-500.0,0.00015973,2]
[330843295,1719856250403,-504.54451922,0.00015973,2]
[330843296,1719856250412,-505.71367017,0.00015973,2]
[330843297,1719856250421,-4786.94,0.00015973,2]
[330843298,1719856250431,-4786.94,0.00015973,2]
[330843299,1719856250440,-4786.94,0.00015973,2]
[330843300,1719856250450,-4786.94,0.00015973,2]
[330843301,1719856250459,-579.99608632,0.00015973,2]
[330843302,1719856250469,-4786.94,0.00015973,2]
[330843303,1719856250478,-500.0,0.00015973,2]
[330843304,1719856250487,-4786.94,0.00015973,2]
[330843305,1719856250497,-193.43504717,0.00015973,2]
[330843306,1719856250506,-502.73925406,0.00015973,2]
[330843307,1719856250516,-500.0,0.00015973,2]
[330843308,1719856250526,-526.67763803,0.00015973,2]
[330843309,1719856250535,-582.64788124,0.00015973,2]
[330843310,1719856250544,-503.71192694,0.00015973,2]
[330843311,1719856250554,-500.0,0.00015973,2]
[330843312,1719856250564,-1469.11,0.00015973,2]
[330843313,1719856250573,-504.85401027,0.00015973,2]
[330843314,1719856250582,-500.0,0.00015973,2]
[330843315,1719856250592,-504.80495398,0.00015973,2]
[330843316,1719856250601,-500.0,0.00015973,2]
[330843317,1719856250610,-500.0,0.00015973,2]
[330843318,1719856250620,-501.1592088,0.00015973,2]
[330843319,1719856250629,-500.0,0.00015973,2]
[330843320,1719856250639,-335.64847771,0.00015973,2]
[330843321,1719856250648,-795.77,0.00015973,2]
[330843322,1719856250657,-504.92207724,0.00015973,2]
[330843323,1719856250666,-557.70031434,0.00015973,2]
[330843324,1719856250676,-500.0,0.00015973,2]
[330843325,1719856250685,-500.0,0.00015973,2]
[330843326,1719856250694,-507.13622971,0.00015973,2]
[330843327,1719856250703,-500.0,0.00015973,2]
[330843328,1719856250712,-377.38224468,0.00015973,2]
[330843329,1719856250721,-501.58101296,0.00015973,2]
[330843330,1719856250730,-427.79908151,0.00015973,2]
[330843331,1719856250739,-500.0,0.00015973,2]
[330843332,1719856250749,-500.0,0.00015973,2]
[330843333,1719856250758,-502.72196481,0.00015973,2]
[330843334,1719856250767,-500.0,0.00015973,2]
[330843335,1719856250779,-502.65344077,0.00015973,2]
[330843336,1719856250788,-785.4,0.00015973,2]
[330843337,1719856250798,-500.0,0.00015973,2]
[330843338,1719856250810,-500.0,0.00015973,2]
[330843339,1719856250820,-504.8267947,0.00015973,2]
[330843340,1719856250830,-502.13284508,0.00015973,2]
[330843341,1719856250839,-501.82037264,0.00015973,2]
[330843342,1719856250849,-505.1165399,0.00015973,2]
[330843343,1719856250858,-500.0,0.00015973,2]
[330843344,1719856250868,-502.77658106,0.00015973,2]
[330843345,1719856250877,-503.06691404,0.00015973,2]
[330843346,1719856250886,-500.0,0.00015973,2]
[330843347,1719856250895,-585.31302123,0.00015973,2]
[330843348,1719856250905,-502.07366837,0.00015973,2]
[330843349,1719856250914,-500.0,0.00015973,2]
[330843350,1719856250924,-500.0,0.00015973,2]
[330843351,1719856250933,-500.0,0.00015973,2]
[330843352,1719856250943,-500.0,0.00015973,2]
[330843353,1719856250953,-500.0,0.00015973,2]
[330843354,1719856250962,-289.9883636,0.00015973,2]
[330843355,1719856250971,-388.43774458,0.00015973,2]
[330843356,1719856250981,-500.0,0.00015973,2]
[330843357,1719856250990,-500.0,0.00015973,2]
[330843358,1719856250999,-501.26345992,0.00015973,2]
[330843359,1719856251008,-500.0,0.00015974,2]
[330843360,1719856251018,-500.0,0.00015974,2]
[330843361,1719856251030,-500.0,0.00015974,2]
[330843362,1719856251039,-500.0,0.00015974,2]
[330843363,1719856251048,-503.96027341,0.00015974,2]
[330843364,1719856251057,-429.46199475,0.00015974,2]
[330843365,1719856251066,-503.84849876,0.00015974,2]
[330843366,1719856251075,-500.0,0.00015974,2]
[330843367,1719856251084,-501.61420708,0.00015974,2]
[330843368,1719856251094,-502.76706318,0.00015974,2]
[330843369,1719856251103,-502.19151103,0.00015974,2]
[330843370,1719856251112,-500.0,0.00015974,2]
[330843371,1719856251121,-500.0,0.00015974,2]
[330843372,1719856251130,-509.09972171,0.00015974,2]
[330843373,1719856251139,-502.15520834,0.00015974,2]
[330843374,1719856251148,-503.10144226,0.00015974,2]
[330843375,1719856251157,-500.0,0.00015974,2]
[330843376,1719856251166,-500.0,0.00015974,2]
[330843377,1719856251176,-555.90990415,0.00015974,2]
[330843378,1719856251185,-646.22316667,0.00015974,2]
[330843379,1719856251194,-500.0,0.00015974,2]
[330843380,1719856251203,-500.0,0.00015974,2]
[330843381,1719856251212,-503.42211911,0.00015974,2]
[330843382,1719856251221,-500.0,0.00015974,2]
[330843383,1719856251230,-500.0,0.00015974,2]
[330843384,1719856251240,-500.0,0.00015974,2]
[330843385,1719856251248,-512.08902863,0.00015974,2]
[330843386,1719856251257,-500.0,0.00015974,2]
[330843387,1719856251267,-500.0,0.00015974,2]
[330843388,1719856251283,-591.5961068,0.00015974,2]
[330843389,1719856251293,-500.0,0.00015974,2]
[330843390,1719856251303,-500.0,0.00015974,2]
[330843391,1719856251312,-501.91975086,0.00015974,2]
[330843392,1719856251323,-507.84279806,0.00015974,2]
[330843393,1719856251332,-505.62874781,0.00015974,2]
[330843394,1719856251342,-500.0,0.00015974,2]
[330843395,1719856251354,-505.84708477,0.00015974,2]
[330843396,1719856251364,-500.0,0.00015974,2]
[330843397,1719856251373,-500.0,0.00015974,2]
[330843398,1719856251382,-533.97919702,0.00015974,2]
[330843399,1719856251392,-533.72030171,0.00015974,2]
[330843400,1719856251404,-500.0,0.00015974,2]
[330843401,1719856251414,-500.0,0.00015974,2]
[330843402,1719856251423,-501.74048752,0.00015974,2]
[330843403,1719856251434,-633.63376606,0.00015974,2]
[330843404,1719856251444,-646.90948397,0.00015974,2]
[330843405,1719856251453,-500.0,0.00015974,2]
[330843406,1719856251462,-504.19900814,0.00015974,2]
[330843407,1719856251471,-580.83,0.00015974,2]
[330843408,1719856251481,-501.87925962,0.00015974,2]
[330843409,1719856251491,-500.0,0.00015974,2]
[330843410,1719856251500,-208.20452457,0.00015974,2]
[330843411,1719856251510,-500.0,0.00015974,2]
[330843412,1719856251519,-505.66031512,0.00015974,2]
[330843413,1719856251529,-500.0,0.00015975,2]
[330843414,1719856251539,-4786.94,0.00015975,2]
[330843415,1719856251548,-501.88103992,0.00015975,2]
[330843416,1719856251558,-1473.35,0.00015975,2]
[330843417,1719856251568,-548.03,0.00015975,2]
[330843418,1719856251577,-504.87069032,0.00015975,2]
[330843419,1719856251587,-3009.77,0.00015975,2]
[330843420,1719856251596,-500.0,0.00015975,2]
[330843421,1719856251605,-505.05077727,0.00015975,2]
[330843422,1719856251615,-500.0,0.00015976,2]
[330843423,1719856251624,-500.0,0.00015976,2]
[330843424,1719856251634,-502.68098233,0.00015976,2]
[330843425,1719856251644,-500.0,0.00015976,2]
[330843426,1719856251653,-500.0,0.00015976,2]
[330843427,1719856251662,-5103.93,0.00015976,2]
[330843428,1719856251671,-1288.41,0.00015976,2]
[330843429,1719856251680,-490.82318913,0.00015995,2]
[330843430,1719856251689,-1000.0,0.00016,8]
[330843431,1719856251699,-500.000001,0.00016,2]
[330843432,1719856251707,-4786.94,0.00016199,2]
[330843433,1719856251716,-6690.017404,0.000162,2]
[330843434,1719856251725,-500.0,0.00016253,2]
[330843435,1719856251735,-500.0,0.00016253,2]
[330843436,1719856251843,-500.0,0.00016253,2]
[330843437,1719856251853,-472.65325414,0.00016253,2]
[330843438,1719856251862,-4786.94,0.00016253,2]
[330843439,1719856251872,-4786.94,0.00016253,2]
[330843440,1719856251881,-4786.94,0.00016253,2]
[330843441,1719856251891,-4786.94,0.00016253,2]
[330843442,1719856251900,-52531.26490955,0.00016254,2]
[330843443,1719856252097,-3581.83744021,0.00015974,2]
[330843444,1719856252109,-953.23570508,0.00015974,2]
[330843446,1719856455748,1000.0,0.00015,7]
[330843447,1719856530064,154.86836189,0.00015,2]
[330843448,1719856623067,154.86836189,0.00015,2]
[330843454,1719856724080,154.95996324,0.00015,2]
[330843487,1719857434403,-300.0,0.00015954,2]
[330843488,1719857434413,-500.0,0.00015954,2]
[330843489,1719857434423,-100.80826738,0.00015954,2]
[330843490,1719857434436,-587.53985112,0.00015954,2]
[330843491,1719857434445,-688.3481185,0.00015954,2]
[330843492,1719857434455,-402.77814128,0.00015954,2]
[330843493,1719857434466,-688.3481185,0.00015954,2]
[330843494,1719857434476,-688.3481185,0.00015954,2]
[330843495,1719857434485,-688.3481185,0.00015954,2]
[330843496,1719857434495,-688.3481185,0.00015954,2]
[330843497,1719857434504,-306.64991586,0.00015955,2]
[330843498,1719857434513,-77.59862261,0.00015955,2]
[330843504,1719857438510,-688.3481185,0.00015954,2]
[330843505,1719857438520,-688.3481185,0.00015954,2]
[330843506,1719857438529,-688.3481185,0.00015954,2]
[330843507,1719857438538,-178.61481263,0.00015954,2]
[330843509,1719857438550,-509.73330587,0.00015954,2]
[330843510,1719857438560,-688.3481185,0.00015954,2]
[330843511,1719857438569,-688.3481185,0.00015954,2]
[330843512,1719857438578,-688.3481185,0.00015954,2]
[330843513,1719857438587,-688.3481185,0.00015954,2]
[330843514,1719857438596,-688.3481185,0.00015954,2]
[330843515,1719857438606,-688.3481185,0.00015954,2]
[330843516,1719857438616,-688.3481185,0.00015954,2]
[330843517,1719857438625,-688.3481185,0.00015954,2]
[330843518,1719857438637,-688.3481185,0.00015954,2]
[330843519,1719857438646,-688.3481185,0.00015954,2]
[330843520,1719857438656,-688.3481185,0.00015954,2]
[330843521,1719857438665,-688.3481185,0.00015954,2]
[330843522,1719857438675,-688.3481185,0.00015954,2]
[330843523,1719857438684,-688.3481185,0.00015954,2]
[330843524,1719857438693,-688.3481185,0.00015954,2]
[330843525,1719857438703,-688.3481185,0.00015954,2]
[330843526,1719857438713,-688.3481185,0.00015954,2]
[330843527,1719857438723,-688.3481185,0.00015954,2]
[330843528,1719857438732,-688.3481185,0.00015954,2]
[330843529,1719857438742,-688.3481185,0.00015954,2]
[330843530,1719857438751,-688.3481185,0.00015954,2]
[330843531,1719857438761,-688.3481185,0.00015954,2]
[330843532,1719857438772,-688.3481185,0.00015954,2]
[330843533,1719857438781,-688.3481185,0.00015954,2]
[330843534,1719857438791,-688.3481185,0.00015954,2]
[330843535,1719857438801,-688.3481185,0.00015954,2]
[330843536,1719857438811,-168.17582829,0.00015954,2]
[330843537,1719857438824,-520.17229021,0.00015954,2]
[330843538,1719857438835,-97.12956565,0.00015954,2]
[330843539,1719857438848,-591.21855285,0.00015954,2]
[330843540,1719857438858,-688.3481185,0.00015954,2]
[330843541,1719857438868,-688.3481185,0.00015954,2]
[330843542,1719857438878,-688.3481185,0.00015954,2]
[330843543,1719857438888,-688.3481185,0.00015954,2]
[330843544,1719857438898,-688.3481185,0.00015954,2]
[330843545,1719857438908,-688.3481185,0.00015954,2]
[330843546,1719857438917,-422.40137739,0.00015955,2]
[330843547,1719857438927,-370.54513847,0.00015955,2]
[330843548,1719857438937,-1591.84373272,0.00015955,2]
[330843549,1719857438948,-236.36564553,0.00015955,2]
[330843550,1719857438958,-500.0,0.00015955,2]
[330843551,1719857438968,-500.0,0.00015955,2]
[330843552,1719857438978,-500.0,0.00015955,2]
[330843553,1719857438989,-1591.84373272,0.00015955,2]
[330843554,1719857438999,-500.0,0.00015955,2]
[330843555,1719857439009,-500.0,0.00015955,2]
[330843556,1719857439020,-500.0,0.00015955,2]
[330843557,1719857439030,-500.0,0.00015955,2]
[330843558,1719857439041,-500.0,0.00015955,2]
[330843559,1719857439051,-1591.84373272,0.00015955,2]
[330843560,1719857439061,-500.0,0.00015955,2]
[330843561,1719857439071,-1591.84373272,0.00015955,2]
[330843562,1719857439081,-500.0,0.00015955,2]
[330843563,1719857439091,-500.0,0.00015955,2]
[330843564,1719857439101,-500.0,0.00015955,2]
[330843565,1719857439110,-1591.84373272,0.00015955,2]
[330843566,1719857439120,-500.0,0.00015955,2]
[330843567,1719857439130,-500.0,0.00015955,2]
[330843568,1719857439139,-500.0,0.00015955,2]
[330843569,1719857439149,-563.34437111,0.00015955,2]
[330843570,1719857439158,-1591.84373272,0.00015955,2]
[330843571,1719857439168,-1591.84373272,0.00015955,2]
[330843572,1719857439178,-500.0,0.00015955,2]
[330843573,1719857439187,-211.32146078,0.00015955,2]
[330843574,1719857439197,-500.0,0.00015955,2]
[330843575,1719857439206,-500.0,0.00015955,2]
[330843576,1719857439217,-1591.84373272,0.00015955,2]
[330843577,1719857439228,-500.0,0.00015955,2]
[330843578,1719857439238,-1591.84373272,0.00015955,2]
[330843579,1719857439248,-302.6677156,0.00015955,2]
[330843580,1719857439257,-1591.84373272,0.00015955,2]
[330843581,1719857439266,-500.0,0.00015955,2]
[330843582,1719857439276,-1591.84373272,0.00015955,2]
[330843583,1719857439285,-500.0,0.00015955,2]
[330843584,1719857439295,-1591.84373272,0.00015955,2]
[330843585,1719857439304,-500.0,0.00015955,2]
[330843586,1719857439314,-1591.84373272,0.00015955,2]
[330843587,1719857439324,-500.0,0.00015955,2]
[330843588,1719857439333,-1591.84373272,0.00015955,2]
[330843589,1719857439342,-1591.84373272,0.00015955,2]
[330843590,1719857439352,-500.0,0.00015955,2]
[330843591,1719857439362,-500.0,0.00015955,2]
[330843592,1719857439372,-500.0,0.00015955,2]
[330843593,1719857439382,-500.0,0.00015955,2]
[330843594,1719857439392,-1591.84373272,0.00015955,2]
[330843595,1719857439401,-1591.84373272,0.00015955,2]
[330843596,1719857439411,-500.0,0.00015955,2]
[330843597,1719857439422,-1591.84373272,0.00015955,2]
[330843598,1719857439432,-500.0,0.00015955,2]
[330843599,1719857439442,-77.47939938,0.00015955,2]
[330843680,1719857444489,-1514.36433334,0.00015955,2]
[330843683,1719857444499,-500.0,0.00015955,2]
[330843685,1719857444508,-500.0,0.00015955,2]
[330843687,1719857444518,-119.02441182,0.00015955,2]
[330843807,1719857487824,1500.0,0.00015001,2]
[330843810,1719857666343,208.80469015,0.00014999,2]
[330843811,1719857669284,1117.87472833,0.00014999,2]
[330843812,1719857674311,302.19229571,0.00014999,2]
[330843813,1719857683057,306.21263607,0.00014999,2]
[330843814,1719857697281,563.96023053,0.00014999,2]
[330843816,1719857714188,492.10654606,0.00014999,2]
[330843817,1719857725958,155.22090142,0.00014999,2]
[330843818,1719857729656,408.74962315,0.00015,2]
[330843819,1719857738250,486.05419087,0.00014999,2]
[330843820,1719857758223,401.60278834,0.00014999,2]
[330843821,1719857796264,155.12031434,0.00014999,2]
[330843822,1719857808951,1516.58842086,0.00015,2]
[330843824,1719857850386,2047.38194771,0.00014999,2]
[330843825,1719857858641,159.85747874,0.00014999,2]
[330843826,1719857867038,1588.6733583,0.00014929,2]
[330843827,1719857867074,168.50427389,0.00014999,2]
[330843828,1719858014397,700.74316383,0.00014999,2]
[330843830,1719858402534,1000.0,0.00015,2]
[330843831,1719858472084,500.0,0.00015,2]
[330843832,1719858475927,500.0,0.000145,2]
[330843887,1719858634106,-500.0,0.000155,2]
[330843889,1719858634119,-2241.94484494,0.00015841,2]
[330843891,1719858634133,-1051.49926205,0.00015841,2]
[330843894,1719858634144,-1993.69507107,0.00015841,2]
[330843896,1719858634154,-300.0,0.00015841,2]
[330843898,1719858634165,-3576.15699859,0.00015842,2]
[330843952,1719858639286,-2368.23788058,0.00015842,2]
[330843956,1719858639301,-3762.97062577,0.00015842,2]
[330843958,1719858639312,-1108.18144298,0.00015845,2]
[330843960,1719858639322,-500.0,0.00015941,2]
[330843962,1719858639332,-500.0,0.00015941,2]
[330843964,1719858639342,-925.07995805,0.00015941,2]
[330843965,1719858639352,-406.667883,0.00015941,2]
[330843966,1719858639362,-925.07995805,0.00015941,2]
[330843967,1719858639372,-925.07995805,0.00015941,2]
[330843968,1719858639382,-925.07995805,0.00015941,2]
[330843969,1719858639392,-925.07995805,0.00015941,2]
[330843970,1719858639402,-925.07995805,0.00015941,2]
[330843971,1719858639412,-925.07995805,0.00015941,2]
[330843972,1719858639424,-925.07995805,0.00015941,2]
[330843973,1719858639434,-925.07995805,0.00015941,2]
[330843974,1719858639443,-925.07995805,0.00015941,2]
[330843975,1719858639452,-925.07995805,0.00015941,2]
[330843976,1719858639462,-925.07995805,0.00015941,2]
[330843977,1719858639471,-925.07995805,0.00015941,2]
[330843978,1719858639481,-925.07995805,0.00015941,2]
[330843979,1719858639491,-925.07995805,0.00015941,2]
[330843980,1719858639501,-925.07995805,0.00015941,2]
[330843981,1719858639510,-925.07995805,0.00015941,2]
[330843982,1719858639520,-925.07995805,0.00015941,2]
[330843983,1719858639530,-925.07995805,0.00015941,2]
[330843984,1719858639540,-925.07995805,0.00015941,2]
[330843985,1719858639549,-925.07995805,0.00015941,2]
[330843986,1719858639559,-925.07995805,0.00015941,2]
[330843987,1719858639568,-925.07995805,0.00015941,2]
[330843988,1719858639577,-925.07995805,0.00015941,2]
[330843989,1719858639586,-925.07995805,0.00015941,2]
[330843990,1719858639596,-925.07995805,0.00015941,2]
[330843991,1719858639606,-925.07995805,0.00015941,2]
[330843992,1719858639615,-925.07995805,0.00015941,2]
[330843993,1719858639625,-925.07995805,0.00015941,2]
[330843994,1719858639635,-925.07995805,0.00015941,2]
[330843995,1719858639646,-925.07995805,0.00015941,2]
[330843996,1719858639655,-925.07995805,0.00015941,2]
[330843997,1719858639665,-925.07995805,0.00015941,2]
[330843998,1719858639677,-925.07995805,0.00015941,2]
[330843999,1719858639687,-925.07995805,0.00015941,2]
[330844000,1719858639697,-925.07995805,0.00015941,2]
[330844001,1719858639706,-925.07995805,0.00015941,2]
[330844002,1719858639716,-925.07995805,0.00015941,2]
[330844003,1719858639727,-925.07995805,0.00015941,2]
[330844004,1719858639736,-925.07995805,0.00015941,2]
[330844005,1719858639746,-925.07995805,0.00015941,2]
[330844006,1719858639756,-925.07995805,0.00015941,2]
[330844007,1719858639767,-925.07995805,0.00015941,2]
[330844008,1719858639776,-925.07995805,0.00015941,2]
[330844009,1719858639786,-925.07995805,0.00015941,2]
[330844010,1719858639796,-925.07995805,0.00015941,2]
[330844011,1719858639805,-925.07995805,0.00015941,2]
[330844012,1719858639815,-925.07995805,0.00015941,2]
[330844013,1719858639824,-925.07995805,0.00015941,2]
[330844014,1719858639834,-500.0,0.00015942,2]
[330844015,1719858639843,-500.0,0.00015942,2]
[330844016,1719858639854,-500.0,0.00015942,2]
[330844017,1719858639865,-158.80505934,0.00015942,2]
[330844018,1719858639875,-1237.15149996,0.00015942,2]
[330844019,1719858639885,-500.0,0.00015942,2]
[330844020,1719858639895,-163.39643823,0.00015942,2]
[330844021,1719858639906,-500.0,0.00015942,2]
[330844022,1719858639917,-469.00331134,0.00015942,2]
[330844023,1719858639931,-1237.15149996,0.00015942,2]
[330844024,1719858639941,-340.80031468,0.00015942,2]
[330844025,1719858639951,-1237.15149996,0.00015942,2]
[330844026,1719858639961,-161.49733512,0.00015942,2]
[330844027,1719858639975,-500.0,0.00015942,2]
[330844028,1719858639985,-1237.15149996,0.00015942,2]
[330844029,1719858639996,-500.0,0.00015942,2]
[330844030,1719858640006,-1237.15149996,0.00015942,2]
[330844031,1719858640016,-500.0,0.00015942,2]
[330844032,1719858640026,-735.59921729,0.00015942,2]
[330844033,1719858640043,-501.55228267,0.00015942,2]
[330844034,1719858640054,-1237.15149996,0.00015942,2]
[330844035,1719858640064,-500.0,0.00015942,2]
[330844036,1719858640075,-1237.15149996,0.00015942,2]
[330844037,1719858640085,-500.0,0.00015942,2]
[330844038,1719858640097,-1237.15149996,0.00015942,2]
[330844039,1719858640109,-500.0,0.00015942,2]
[330844041,1719858640119,-1237.15149996,0.00015942,2]
[330844043,1719858640129,-500.0,0.00015942,2]
[330844044,1719858640139,-622.53201154,0.00015942,2]
[330844073,1719858643919,-614.61948842,0.00015942,2]
[330844074,1719858643931,-96.02217824,0.00015942,2]
[330844075,1719858643943,-681.01915666,0.00015942,2]
[330844091,1719858882811,245.8905441,0.00014999,2]
[330844093,1719859154109,224.07905146,0.00014999,2]
[330844156,1719859833039,-927.66209213,0.000154,2]
[330844158,1719859833049,-867.06977277,0.00015437,2]
[330844160,1719859833060,-1103.55313606,0.00015701,2]
[330844162,1719859833072,-4183.586042,0.00015701,2]
[330844164,1719859833082,-180.61728642,0.00015831,2]
[330844166,1719859833091,-300.0,0.00015831,2]
[330844168,1719859833101,-180.61728642,0.00015832,2]
[330844170,1719859833111,-180.61728642,0.00015832,2]
[330844172,1719859833122,-180.61728642,0.00015833,2]
[330844174,1719859833132,-180.61728642,0.00015833,2]
[330844175,1719859833141,-9643.17536098,0.00015931,2]
[330844176,1719859833153,-604.99998376,0.00015931,2]
[330844177,1719859833164,-6688.48466544,0.00015931,2]
[330844178,1719859833175,-7218.35513367,0.00015931,2]
[330844430,1719859841617,-500.0,0.0001593,2]
[330844432,1719859841629,-500.0,0.0001593,2]
[330844434,1719859841639,-390.72851404,0.0001593,2]
[330845289,1719859953042,155.04678695,0.00014999,2]
[330845290,1719859954099,2266.20232864,0.00015,2]
[330845291,1719859955567,164.96782147,0.00014999,2]
[330845292,1719859958394,577.04074407,0.00014999,2]
[330845293,1719859959896,1913.78185736,0.00014999,2]
[330845294,1719859960692,155.06606757,0.00014999,2]
[330845295,1719859961261,1352.52310806,0.00014999,2]
[330845296,1719859962047,156.72682292,0.00014999,2]
[330845297,1719859963792,1102.77481401,0.00015,2]
[330845298,1719859964410,524.93643667,0.00014999,2]
[330845299,1719859966261,200.0,0.00014999,2]
[330845300,1719859966291,155.5212108,0.00014999,2]
[330845301,1719859966903,780.20857993,0.00014999,2]
[330845302,1719859968187,676.37621918,0.00014999,2]
[330845303,1719859971195,320.73678779,0.00014999,2]
[330845304,1719859972386,4082.04657062,0.00014999,2]
[330845305,1719859973147,597.25711609,0.00014999,2]
[330845306,1719859975319,519.83637798,0.00014999,2]
[330845307,1719859977376,521.24308374,0.00014999,2]
[330845308,1719859977572,155.6647338,0.00014999,2]
[330845309,1719859977804,159.60713373,0.00014999,2]
[330845310,1719859978601,166.56800558,0.00014999,2]
[330845311,1719859980022,1312.37104704,0.00014999,2]
[330845312,1719859983083,2117.55302228,0.00014999,2]
[330845313,1719859986511,208.81152895,0.00014999,2]
[330845314,1719859987748,240.58664978,0.00014999,2]
[330845315,1719859991879,4848.84505165,0.00014998,2]
[330845316,1719860000573,193.68301992,0.00014999,2]
[330845317,1719860004838,229.38626953,0.00014999,2]
[330845318,1719860008929,427.50730024,0.00014999,2]
[330845319,1719860028895,182.50534422,0.00014999,2]
[330845320,1719860038470,587.7197832,0.0001493,2]
[330845321,1719860080891,196.07858409,0.00014999,2]
[330845322,1719860093444,542.78109325,0.00014999,2]
[330845323,1719860098000,209.72130719,0.00014999,2]
[330845324,1719860098409,155.05365539,0.00014999,2]
[330845325,1719860109904,179.55856838,0.00014999,2]
[330845326,1719860112038,521.06468489,0.00014999,7]
[330845327,1719860136424,179.90431531,0.00014999,2]
[330845328,1719860149080,265.32110906,0.00014999,2]
[330845329,1719860155072,307.45253686,0.00014999,2]
[330845330,1719860209443,293.6498498,0.00014999,2]
[330845331,1719860258498,2042.88492442,0.00014999,2]
[330845332,1719860407516,700.11880244,0.00014999,2]
[330845333,1719860435147,154.86836189,0.00014999,2]
[330845341,1719860698340,304.423694,0.00014889,2]
[330845373,1719861032579,-4377.92112149,0.00015785,2]
[330845374,1719861032595,-909.21805657,0.00015785,2]
[330845375,1719861032605,-559.91316405,0.00015821,2]
[330845376,1719861032615,-500.0,0.00015919,2]
[330845377,1719861032625,-360.34299201,0.00015919,2]
[330845378,1719861032635,-201.00141914,0.00015919,2]
[330845379,1719861032644,-284.31275924,0.00015919,2]
[330845380,1719861032653,-1145.53634516,0.00015919,2]
[330845381,1719861032662,-500.0,0.00015919,2]
[330845382,1719861032671,-500.0,0.00015919,2]
[330845384,1719861032680,-168.51588129,0.00015919,2]
[330845430,1719861038259,-547.3820516,0.00015919,2]
[330845432,1719861038272,-1001.40150104,0.00015919,2]
[330845434,1719861038283,-546.56834301,0.00015919,2]
[330845436,1719861038293,-2095.35189565,0.00015919,2]